[Event "Chinese League Div-A Rapid 2022"]
[Site "Fuling,Chongqing"]
[Date "2022.09.12"]
[Round "6.16"]
[White "Liu, Yan"]
[Black "Ding, Liren"]
[Result "0-1"]
[ECO "A42"]
[WhiteElo "2530"]
[BlackElo "2808"]
[Annotator "TA"]
[PlyCount "80"]
[EventDate "2022.09.07"]
[EventType "team-tourn"]
[EventCountry "CHN"]
[SourceTitle "playchess.com"]
[Source "ChessBase"]
[SourceQuality "1"]
[TimeControl "1500+10"]

{[%evp 21,80,27,22,0,7,0,9,0,11,3,11,8,24,21,14,16,22,-12,19,15,12,7,17,6,28,24,14,21,18,15,18,-4,0,-30,-36,-66,-59,-66,-66,-60,-59,-59,-60,-62,-16,-213,-191,-262,-272,-312,-291,-395,-430,-430,-430,-430,-430,-419,-339,-430,-410]} 1. Nf3 {[%emt 0:00:03]} g6 {[%emt 0:00:14]} 2. d4 {[%emt 0:00:22]} Bg7 {[%emt 0:00:07]} 3. c4 {[%emt 0:00:13]} d6 {[%emt 0:00:10]} 4. g3 {[%emt 0:00:11]} Nd7 {[%emt 0:00:05]} 5. Bg2 {[%emt 0:00:13]} e5 {[%emt 0:00:02]} 6. O-O {[%emt 0:00:22]} Ne7 {[%emt 0:00:02]} 7. Nc3 {[%emt 0:00:39]} O-O {[%emt 0:00:02]} 8. e4 {[%emt 0:02:16]} exd4 {[%emt 0:00:02]} 9. Nxd4 {[%emt 0:00:02]} Nc6 {[%emt 0:00:02]} 10. Nxc6 {[%emt 0:00:41]} bxc6 {[%emt 0:00:02]} 11. Qc2 {[%emt 0:01:21]} Qf6 {[%emt 0:02:03] was the old line (11...Ne5).} 12. Ne2 {[%emt 0:01:54] A42: Modern Defence: Averbakh Variation.} a5 $5 {[%emt 0:10:17][%mdl 4] Leaves trodden paths.} 13. Rb1 {[%emt 0:00:16]} a4 {[%emt 0:00:01] [#]} 14. b3 $146 {[%emt 0:00:57] The position is equal.} ({Predecessor:} 14. Bd2 Nc5 15. Bc3 Qe7 16. Bxg7 Kxg7 17. Nd4 Bd7 18. f4 f6 19. Rfe1 Ne6 20. Nf5+ gxf5 21. exf5 {½-½ (44) Radulov,I (2340)-Todorov,T (2506) Drancy 2005}) 14... axb3 {[%emt 0:00:02]} 15. axb3 {[%emt 0:00:01]} Qe7 {[%emt 0:03:32]} 16. Bb2 {[%emt 0:02:46]} Ra2 {[%emt 0:00:03]} 17. Nc3 {[%emt 0:00:19]} Ra6 {[%emt 0:00:17]} 18. f4 {[%emt 0:02:31]} Re8 {[%emt 0:00:42]} 19. Ra1 {[%emt 0:01:00]} Rb6 {[%emt 0:00:55]} 20. Na4 {[%emt 0:00:19] aiming for Bxg7.} Bxb2 {[%emt 0:00:37]} 21. Qxb2 {[%emt 0:00:04]} Rb8 {[%emt 0:00:04]} 22. Rae1 {[%emt 0:00:58]} Ba6 {[%emt 0:02:06]} 23. Qc3 {[%emt 0:00:42]} c5 {[%emt 0:00:42]} 24. Qa5 {[%emt 0:02:01][%csl LRa6,LRc7]} Bc8 {[%emt 0:00:27]} 25. e5 {[%emt 0:01:04]} dxe5 {[%emt 0:00:15]} 26. Qxc7 {[%emt 0:00:17] Strongly threatening fxe5.} Rxb3 {[%emt 0:00:21]} 27. fxe5 {[%emt 0:00:05]} Nxe5 {[%emt 0:01:44]} 28. Qxe7 {[%emt 0:01:42][%mdl 64] Remove Defender} Rxe7 {[%emt 0:00:01]} 29. Nxc5 {[%emt 0:00:05]} Rc3 {[%emt 0:00:15]} 30. Bd5 {[%emt 0:02:02][%cal Of1f7]} Bh3 {[%emt 0:00:11]} 31. Rc1 {[%emt 0:00:10]} Re3 {[%emt 0:00:22]} 32. Rf4 {[%emt 0:01:39]} Re2 {[%emt 0:01:16]} (32... Bf5 $15) 33. Rh4 $2 {[%emt 0:01:41] [#] This move loses the game for White.} (33. Rf2 $11 Re3 34. Rf4) 33... Bg4 $1 $19 {[%emt 0:00:13]} 34. Rf1 {[%emt 0:00:07]} (34. Kf1 $142) 34... h5 {[%emt 0:00:36]} 35. h3 {[%emt 0:00:51]} g5 {[%emt 0:00:02]} 36. Rxg4 {[%emt 0:00:20]} hxg4 {[%emt 0:00:00]} 37. hxg4 {[%emt 0:00:03]} Nxg4 {[%emt 0:00:26]} 38. Bf3 {[%emt 0:00:51] [#]} R2e3 $1 {[%emt 0:00:02][%cal Og8g7]} 39. Kg2 {[%emt 0:00:13]} Nf6 {[%emt 0:00:26]} 40. Ba8 {[%emt 0:00:17]} Kg7 {[%emt 0:00:06] Weighted Error Value: White=0.29 (precise) /Black=0.08 (flawless)} 0-1

[Event "Chinese League Div-A Rapid 2022"]
[Site "Fuling,Chongqing"]
[Date "2022.09.12"]
[Round "6.17"]
[White "Zeng, Chongsheng"]
[Black "Lu, Shanglei"]
[Result "1/2-1/2"]
[ECO "B52"]
[WhiteElo "2597"]
[BlackElo "2616"]
[Annotator "TA"]
[PlyCount "53"]
[EventDate "2022.09.07"]
[EventType "team-tourn"]
[EventCountry "CHN"]
[SourceTitle "playchess.com"]
[Source "ChessBase"]
[SourceQuality "1"]
[TimeControl "1500+10"]

{[%evp 20,53,0,-10,-12,-9,0,0,0,0,0,0,0,0,0,0,0,0,0,0,0,0,0,0,0,0,0,0,0,0,0,0,0,0,13,4]} 1. e4 {[%emt 0:00:02]} c5 {[%emt 0:00:18]} 2. Nf3 {[%emt 0:00:02]} d6 {[%emt 0:00:30]} 3. Bb5+ {[%emt 0:00:03]} Bd7 {[%emt 0:01:21]} 4. Bxd7+ {[%emt 0:00:02]} Qxd7 {[%emt 0:00:06]} 5. O-O {[%emt 0:00:05]} Nc6 {[%emt 0:00:13]} 6. c3 {[%emt 0:00:06]} Nf6 {[%emt 0:00:42][%cal Bg8f6,Bf6e4,Be4d2][%mdl 32]} 7. Re1 {[%emt 0:00:03]} e6 {[%emt 0:00:27]} 8. d4 {[%emt 0:00:12]} cxd4 {[%emt 0:00:45]} 9. cxd4 {[%emt 0:00:01]} d5 {[%emt 0:00:30]} 10. e5 {[%emt 0:00:03]} Ne4 {[%emt 0:00:13]} 11. Nbd2 {[%emt 0:00:03] The position is equal.} Nxd2 $1 {[%emt 0:00:36] B52: Sicilian: Moscow Variation with 3...Bd7.} ({But not} 11... Bb4 12. Nxe4 dxe4 13. Rxe4 $16) 12. Bxd2 {[%emt 0:00:04]} Bb4 {[%emt 0:00:18]} 13. Bxb4 {[%emt 0:00:36]} Nxb4 {[%emt 0:00:03]} 14. Qd2 {[%emt 0:00:03]} Nc6 {[%emt 0:00:51]} 15. Rac1 {[%emt 0:00:03]} O-O {[%emt 0:00:47]} 16. Rc2 {[%emt 0:00:19]} Rfc8 {[%emt 0:04:07]} 17. Rec1 {[%emt 0:00:03] [#]} Ne7 $146 {[%emt 0:00:26]} ({Predecessor:} 17... h6 18. h3 Ne7 19. Rxc8+ Rxc8 20. Rxc8+ Qxc8 21. g4 Qc4 22. b3 Qb5 23. Kg2 a5 24. h4 a4 {½-½ (40) Jakupovic,N (2150)-Cvitan,O (2560) Sarajevo 1998}) 18. Qb4 {[%emt 0:00:23]} Rxc2 {[%emt 0:02:35]} 19. Rxc2 {[%emt 0:00:43]} Nc6 {[%emt 0:00:14]} 20. Qd2 {[%emt 0:00:37]} Ne7 {[%emt 0:00:12]} 21. Qc1 {[%emt 0:00:15]} Rc8 {[%emt 0:00:07]} 22. Rxc8+ {[%emt 0:00:03]} Qxc8 {[%emt 0:00:03]} 23. Qxc8+ {[%emt 0:00:02]} Nxc8 {[%emt 0:00:02]} 24. Kf1 {[%emt 0:00:09]} Kf8 {[%emt 0:00:06]} 25. Ke2 {[%emt 0:00:02]} Ke7 {[%emt 0:00:06]} 26. Kd3 {[%emt 0:00:01]} h6 {[%emt 0:00:28]} 27. h4 {[%emt 0:00:01] Not much happened in this game.  Weighted Error Value: White=0.01 (flawless) /Black=0.01 (flawless)} 1/2-1/2

[Event "Chinese League Div-A Rapid 2022"]
[Site "Fuling,Chongqing"]
[Date "2022.09.12"]
[Round "6.18"]
[White "Bu, Xiangzhi"]
[Black "Xu, Minghui"]
[Result "1-0"]
[ECO "A13"]
[WhiteElo "2709"]
[BlackElo "2408"]
[Annotator "TA"]
[PlyCount "47"]
[EventDate "2022.09.07"]
[EventType "team-tourn"]
[EventCountry "CHN"]
[SourceTitle "playchess.com"]
[Source "ChessBase"]
[SourceQuality "1"]
[TimeControl "1500+10"]

{[%evp 9,47,17,15,-12,-9,-7,-7,-7,-6,-12,0,0,13,0,8,0,2,-28,0,-16,-18,-21,-7,-12,0,0,0,0,0,0,0,0,355,356,344,337,374,376,369,363]} 1. c4 {[%emt 0:00:01]} e6 {[%emt 0:00:06]} 2. g3 {[%emt 0:00:01]} d5 {[%emt 0:00:14]} 3. Bg2 {[%emt 0:00:01]} Nf6 {[%emt 0:00:01]} 4. Nf3 {[%emt 0:00:01]} d4 {[%emt 0:00:09]} 5. d3 {[%emt 0:00:01]} c5 {[%emt 0:00:49]} 6. e4 {[%emt 0:00:00] A13: English Opening: 1...e6.} Nc6 {[%emt 0:01:36]} 7. e5 {[%emt 0:00:01] Against Bd6} Nd7 {[%emt 0:00:01]} 8. Qe2 {[%emt 0:00:01] The position is equal.} Be7 {[%emt 0:01:32]} 9. h4 {[%emt 0:00:00]} Qc7 {[%emt 0:02:43][%cal Rc6e5]} 10. Bf4 {[%emt 0:00:01]} b6 {[%emt 0:00:09]} 11. Nbd2 {[%emt 0:00:16]} Bb7 {[%emt 0:00:21]} 12. a3 {[%emt 0:01:49]} h6 {[%emt 0:00:47][%cal Bh7h6,Bh6h5,Bh5h4][%mdl 32]} (12... Ncxe5 13. Nxe5 Bxg2 14. Rh2 Nxe5 15. Bxe5 $16) 13. h5 {[%emt 0:03:35]} O-O-O {[%emt 0:00:08]} ({Resist} 13... Ncxe5 14. Nxe5 Bxg2 15. Nxf7 $1 $16) 14. O-O {[%emt 0:00:51]} g5 {[%emt 0:02:30]} 15. hxg6 $1 {[%emt 0:00:02]} fxg6 {[%emt 0:00:02] And now ...g5 would win.} 16. g4 {[%emt 0:00:17]} g5 {[%emt 0:02:41]} 17. Bg3 {[%emt 0:00:21]} h5 {[%emt 0:00:31]} 18. Rfe1 {[%emt 0:01:40] [#]} h4 $146 {[%emt 0:06:00]} ({Predecessor:} 18... Rdg8 19. Rab1 Nf8 20. Ne4 hxg4 21. Nh2 Ng6 22. Nd6+ Kb8 23. Nxb7 Qxb7 24. Qe4 Nd8 25. Qxg4 {1-0 (56) Poleg,D (2321)-Savic,M (2067) Khanty-Mansiysk 2016}) 19. Bh2 {[%emt 0:00:01]} Rhg8 {[%emt 0:00:50]} 20. Ne4 {[%emt 0:05:08]} Ndxe5 $2 {[%emt 0:00:03][%mdl 8192]} (20... Rdf8 $11) 21. Nxe5 $18 {[%emt 0:01:17]} Nxe5 {[%emt 0:00:02]} 22. f3 {[%emt 0:00:03]} h3 {[%emt 0:02:43] [#]} 23. Bh1 {[%emt 0:01:15]} Rdf8 {[%emt 0:04:01][%cal Of8f4]} 24. Nd2 {[%emt 0:00:08] Weighted Error Value: White=0.05 (flawless) /Black=0.39} ({Not} 24. Nf2 Bxf3 25. Qxe5 (25. Bxe5 Bxe2 26. Bxc7 Bxd3 $16) 25... Qxe5 26. Bxe5 Bxh1 $16) 1-0

[Event "Chinese League Div-A Rapid 2022"]
[Site "Fuling,Chongqing"]
[Date "2022.09.12"]
[Round "6.19"]
[White "Zhu, Jiner"]
[Black "Yeoh, Li Tian"]
[Result "1-0"]
[ECO "D35"]
[WhiteElo "2464"]
[BlackElo "2530"]
[Annotator "TA"]
[PlyCount "117"]
[EventDate "2022.09.07"]
[EventType "team-tourn"]
[EventCountry "CHN"]
[SourceTitle "playchess.com"]
[Source "ChessBase"]
[SourceQuality "1"]
[TimeControl "1500+10"]

{[%evp 18,117,26,3,40,32,39,40,36,16,23,17,18,18,22,22,78,54,79,82,70,56,68,50,64,0,143,138,275,257,241,243,275,251,319,324,347,335,574,581,568,554,561,612,604,593,507,485,498,502,489,480,743,727,935,897,1049,1040,979,981,1291,690,682,664,656,661,625,623,639,636,604,597,579,564,694,578,678,661,2454,2107,29939,5709,29974,29975,29974,29975,29976,29973,29975,29976,29976,29977,29975,29975,29981,29982,29982,29983,29983,29982,29982,29983]} 1. d4 {[%emt 0:00:03]} d5 {[%emt 0:00:08]} 2. c4 {[%emt 0:00:09]} e6 {[%emt 0:00:05]} 3. Nc3 {[%emt 0:00:08]} Nf6 {[%emt 0:00:07]} 4. cxd5 {[%emt 0:00:09]} exd5 {[%emt 0:00:05]} 5. Bg5 {[%emt 0:00:06]} Be7 {[%emt 0:00:08]} 6. e3 {[%emt 0:00:04]} c6 {[%emt 0:00:07]} 7. Bd3 {[%emt 0:00:05]} O-O {[%emt 0:00:09]} 8. Nge2 {[%emt 0:00:04]} Re8 {[%emt 0:00:11]} 9. O-O {[%emt 0:00:08]} Nbd7 {[%emt 0:00:28]} 10. f3 {[%emt 0:00:07]} Nh5 {[%emt 0:03:02] D35: Queen's Gambit Declined: Exchange Variation.} 11. Bxe7 {[%emt 0:01:00]} Qxe7 {[%emt 0:00:04]} 12. e4 {[%emt 0:00:21]} Nb6 {[%emt 0:01:00] White is slightly better.} 13. Qc2 {[%emt 0:02:07]} g6 {[%emt 0:01:15]} 14. Rae1 {[%emt 0:01:59]} Be6 {[%emt 0:01:37] [#]} 15. Qc1 $146 {[%emt 0:01:40]} ({Predecessor:} 15. e5 c5 16. Qd2 Red8 17. b3 a6 18. Qh6 Rac8 19. Rc1 Ng7 20. Ng3 Nd7 21. f4 {0-1 (44) Garcia Ruiz,F (2031)-Pastor Alonso de Prado,E (2172) Mostoles 2015}) 15... Rad8 {[%emt 0:03:32]} 16. e5 {[%emt 0:00:55]} f5 {[%emt 0:01:17]} (16... Ng7 $11) 17. Nf4 {[%emt 0:02:10]} Ng7 {[%emt 0:01:32]} 18. g3 {[%emt 0:01:22]} a6 {[%emt 0:00:53]} 19. Nce2 {[%emt 0:00:48] White is more active.} Rc8 {[%emt 0:01:24]} 20. h4 {[%emt 0:00:34][%cal Oh4h5]} c5 {[%emt 0:02:49]} 21. Qe3 {[%emt 0:00:04]} ({White should try} 21. dxc5 $14 Nc4 22. b4 (22. Nxe6 Nxe6 23. b4 Nxe5 $15)) 21... Na4 {[%emt 0:02:24] White stays focused until the end.} (21... Bf7 $11) 22. b3 $16 {[%emt 0:00:45][%cal Bb2b3,Bb3a4,Ba4a5][%mdl 32]} c4 {[%emt 0:01:00]} (22... Nb6 $16) 23. bxa4 {[%emt 0:03:01]} cxd3 {[%emt 0:00:04]} 24. Qxd3 {[%emt 0:00:13]} Rc4 {[%emt 0:00:49]} 25. a5 {[%emt 0:01:46]} Rec8 {[%emt 0:00:16]} 26. Rb1 {[%emt 0:00:08]} R8c7 {[%emt 0:00:18]} 27. Rb6 {[%emt 0:00:06]} Kf7 $2 {[%emt 0:01:59] [#]} (27... R4c6 {was necessary.} 28. Rfb1 Kh8 29. Rxc6 Rxc6) 28. Rxe6 $1 $18 {[%emt 0:00:29][%mdl 512]} Nxe6 {[%emt 0:00:06]} 29. Nxd5 {[%emt 0:00:02] Pair of Knights!} Qd7 {[%emt 0:01:32]} 30. Nxc7 {[%emt 0:00:05]} Qxc7 {[%emt 0:00:14]} 31. Kg2 {[%emt 0:01:29]} Rc2 {[%emt 0:00:32][%cal Oe6d4]} 32. Rf2 {[%emt 0:00:04]} Qc4 {[%emt 0:00:15]} 33. Qxc4 {[%emt 0:00:10]} Rxc4 {[%emt 0:00:01][%mdl 4096] Endgame KRN-KRN} 34. d5 {[%emt 0:00:05][%cal Bd4d5,Bd5d6][%mdl 32]} Nc5 {[%emt 0:00:13]} (34... Nd8 $142 35. Nf4 Rc5) 35. Nf4 {[%emt 0:00:18]} Ra4 {[%emt 0:00:46]} 36. Re2 {[%emt 0:00:29]} Rxa5 {[%emt 0:00:26]} 37. e6+ {[%emt 0:00:04]} Ke8 {[%emt 0:00:00]} 38. d6 {[%emt 0:00:06]} Rb5 {[%emt 0:00:24]} 39. Nd5 {[%emt 0:00:10] [#] Threatening mate with Nf6+.} Nxe6 {[%emt 0:00:10]} 40. Rxe6+ {[%emt 0:00:29] KRN-KR} Kd7 {[%emt 0:00:01]} 41. Nf4 {[%emt 0:00:12]} Rb2+ {[%emt 0:00:06]} 42. Re2 {[%emt 0:00:16]} Rxe2+ {[%emt 0:00:16]} 43. Nxe2 {[%emt 0:00:02]} Kxd6 {[%emt 0:00:01] KN-KP} 44. Kf2 {[%emt 0:00:03]} Kc5 {[%emt 0:00:04]} 45. Ke3 {[%emt 0:00:01] Strongly threatening Kf4.} Kc4 {[%emt 0:00:00]} 46. Kd2 {[%emt 0:01:01]} b5 {[%emt 0:00:11]} 47. Nf4 {[%emt 0:01:03]} b4 {[%emt 0:00:21]} 48. Ne6 {[%emt 0:00:04]} b3 {[%emt 0:00:26]} 49. axb3+ {[%emt 0:00:04]} Kxb3 {[%emt 0:00:01]} 50. Nc5+ {[%emt 0:00:04] White mates.} Kc4 {[%emt 0:00:09]} 51. Nxa6 {[%emt 0:00:03] KN-K3P} Kd4 {[%emt 0:00:04]} 52. Nc7 {[%emt 0:00:07]} h6 {[%emt 0:00:14]} 53. Ne6+ {[%emt 0:00:26]} Ke5 {[%emt 0:00:02]} 54. Nf8 {[%emt 0:00:02]} Kf6 {[%emt 0:00:27]} 55. Ke3 {[%emt 0:00:07]} g5 {[%emt 0:00:11]} 56. h5 {[%emt 0:00:04]} Ke5 {[%emt 0:00:06]} 57. Ng6+ {[%emt 0:00:05]} Kf6 {[%emt 0:00:03]} 58. Kd4 {[%emt 0:00:03]} Ke6 {[%emt 0:00:05]} 59. Kc5 {[%emt 0:00:10] Weighted Error Value: White=0.23 (precise) /Black=0.39} 1-0

[Event "Chinese League Div-A Rapid 2022"]
[Site "Fuling,Chongqing"]
[Date "2022.09.12"]
[Round "6.20"]
[White "Bai, Xue"]
[Black "Huang, Qian"]
[Result "0-1"]
[ECO "B08"]
[WhiteElo "2123"]
[BlackElo "2433"]
[Annotator "TA"]
[PlyCount "100"]
[EventDate "2022.09.07"]
[EventType "team-tourn"]
[EventCountry "CHN"]
[SourceTitle "playchess.com"]
[Source "ChessBase"]
[SourceQuality "1"]
[TimeControl "1500+10"]

{[%evp 17,100,18,18,22,26,0,0,0,0,-6,-5,0,0,-39,11,0,11,4,27,32,98,86,71,17,15,-10,0,0,0,-44,-33,-31,-28,-57,-48,-44,-52,-48,-54,-38,-48,-64,-77,-91,-43,-53,-21,-19,-24,-60,-32,-129,-85,-87,-89,-131,-125,-185,-177,-345,-322,-2107,0,-112,-80,-108,0,-102,-93,-108,-108,-132,-138,-168,-175,-229,0,-166,-57,-176,-164,-1357,-1256,-1351,-1284]} 1. e4 {[%emt 0:00:03]} g6 {[%emt 0:00:05]} 2. Nf3 {[%emt 0:00:23]} Bg7 {[%emt 0:00:05]} 3. d4 {[%emt 0:00:02]} d6 {[%emt 0:00:04]} 4. Nc3 {[%emt 0:01:14]} Nf6 {[%emt 0:00:10]} 5. Bd3 {[%emt 0:00:52]} O-O {[%emt 0:00:25]} 6. O-O {[%emt 0:00:03]} Nc6 {[%emt 0:00:29]} 7. h3 {[%emt 0:01:33]} e5 {[%emt 0:00:19]} 8. dxe5 {[%emt 0:00:23]} Nxe5 {[%emt 0:02:29]} 9. Nxe5 {[%emt 0:00:08]} dxe5 {[%emt 0:00:02]} 10. Bc4 {[%emt 0:00:33] B08: Pirc Defence: Classical System.} Qe7 {[%emt 0:00:39]} 11. Qe2 {[%emt 0:00:07]} c6 {[%emt 0:00:27]} 12. a4 {[%emt 0:01:29] The position is equal.} Nh5 {[%emt 0:00:24]} 13. b3 {[%emt 0:02:56]} Rd8 {[%emt 0:01:53]} 14. Qf3 {[%emt 0:01:36] [#] Against Nf4} (14. Rd1 {seems wilder.} Nf4 15. Rxd8+ Qxd8 16. Bxf4 exf4 17. Rd1) 14... Nf4 $146 {[%emt 0:03:17]} ({Predecessor:} 14... Be6 15. Ba3 Qe8 16. Bxe6 Qxe6 17. Rad1 Nf4 18. Ne2 Nxe2+ 19. Qxe2 h5 20. Qe3 Rd7 {1-0 (71) Diaz Camallonga,C (2432)-Moussard,J (2605) Chess.com INT 2019}) 15. Ne2 {[%emt 0:03:27]} Ne6 {[%emt 0:00:03]} ({Better is} 15... Be6 $15) 16. Ba3 {[%emt 0:00:52]} Qe8 {[%emt 0:01:30]} 17. Rad1 {[%emt 0:00:53]} Bd7 {[%emt 0:00:36]} 18. Qe3 {[%emt 0:01:19]} Nd4 {[%emt 0:04:56]} (18... Nf8 $14) 19. Nxd4 $16 {[%emt 0:00:04]} exd4 {[%emt 0:00:01]} 20. Qf3 {[%emt 0:00:01]} (20. Rxd4 $16 {next Rd3 is good for White.} Bxd4 21. Qxd4) 20... Be6 {[%emt 0:00:07]} 21. Bxe6 {[%emt 0:03:34]} fxe6 {[%emt 0:00:14]} 22. Qg3 {[%emt 0:00:19]} e5 {[%emt 0:00:03]} 23. Rd3 {[%emt 0:02:27]} b6 {[%emt 0:03:19]} 24. Qg4 {[%emt 0:00:41]} c5 {[%emt 0:00:19]} 25. c4 {[%emt 0:01:03]} Qc6 {[%emt 0:00:14]} 26. Bc1 {[%emt 0:00:38]} a6 {[%emt 0:00:21]} 27. Qe2 {[%emt 0:00:47]} b5 {[%emt 0:00:24]} 28. axb5 {[%emt 0:00:02]} axb5 {[%emt 0:00:01]} 29. cxb5 {[%emt 0:00:13]} Qxb5 {[%emt 0:00:03]} 30. Qc2 {[%emt 0:00:05]} Ra1 {[%emt 0:04:19]} (30... Ra6 $17 31. Bg5 Rda8) 31. Bg5 $15 {[%emt 0:00:41][%csl LRa1,LRd8]} Rxf1+ {[%emt 0:01:07]} (31... Rda8 $5 {[%cal Rh7h6]}) 32. Kxf1 {[%emt 0:00:01]} Ra8 $36 {[%emt 0:00:08][%mdl 2048] Black has some pressure.} 33. Kg1 {[%emt 0:00:03]} h6 {[%emt 0:00:15]} 34. Bd2 {[%emt 0:00:35]} (34. Be7 $15) 34... Ra3 {[%emt 0:00:20]} 35. Kh2 {[%emt 0:00:10]} Qa6 {[%emt 0:00:24] White must now prevent ...Ra2.} 36. Rg3 {[%emt 0:00:50]} Ra2 {[%emt 0:00:17]} 37. Qd1 {[%emt 0:00:31]} (37. Qc1 $17 Kh7 38. Rf3) 37... Kh7 $1 $19 {[%emt 0:00:11]} 38. Rf3 $2 {[%emt 0:00:19] [#]} (38. h4) 38... Ra1 $1 {[%emt 0:00:44]} 39. Qc2 {[%emt 0:00:08] [#]} (39. Bc1 Kg8 40. Rg3) 39... Ra2 $2 {[%emt 0:00:01]} (39... Qf1 $1 $19 {[%cal Rf1h1] ( -> ...Qh1+)} 40. Kg3 Qh1) 40. Qd1 $17 {[%emt 0:00:01]} Qb7 {[%emt 0:00:20] Against Rf7} 41. Qe1 {[%emt 0:00:12]} Qa6 {[%emt 0:00:24] aiming for ...Ra1.} 42. Qd1 {[%emt 0:00:02]} Qb5 {[%emt 0:00:17]} 43. h4 {[%emt 0:00:02]} Qc6 {[%emt 0:00:08] Black is more active.} (43... Qd7 {is interesting.} 44. Rd3 Qf7 45. Kg3 Bf6) 44. Qe1 {[%emt 0:00:05]} Qe6 {[%emt 0:00:02]} 45. Rg3 {[%emt 0:00:46] Inhibits Qg4.} Qf6 {[%emt 0:00:10]} 46. Rh3 {[%emt 0:00:08]} (46. h5 $142 gxh5 47. Rd3) 46... Qe6 {[%emt 0:00:08]} 47. Rg3 $1 {[%emt 0:00:03]} Rb2 {[%emt 0:00:08]} (47... Qe7 $19 48. Rh3 Qe6) 48. Qd1 {[%emt 0:00:04]} (48. Qc1 $15 Ra2 49. Qd1) 48... Qf6 {[%emt 0:00:04]} 49. f3 $2 {[%emt 0:00:11]} (49. h5 Qh4+ 50. Kg1) 49... Qxh4+ $19 {[%emt 0:00:05]} 50. Rh3 {[%emt 0:00:01]} Qf2 {[%emt 0:00:03] Weighted Error Value: White=0.43/Black=0.41} 0-1